[Event "FTX Crypto Cup MCCT 2022"]
[Site "Miami"]
[Date "2022.08.11"]
[Round "4.2"]
[White "Le, Quang Liem"]
[Black "Carlsen, Magnus"]
[Result "1/2-1/2"]
[ECO "E06"]
[WhiteElo "2722"]
[BlackElo "2864"]
[Annotator "TA"]
[PlyCount "73"]
[EventDate "2022.08.10"]
[EventType "tourn"]
[EventCountry "USA"]
[SourceTitle "playchess.com"]
[Source "ChessBase"]
[SourceQuality "1"]
[TimeControl "900+10"]

{[%evp 11,73,20,35,32,35,19,25,0,0,0,4,3,7,14,33,36,36,35,32,27,40,9,19,21,23,17,24,21,38,29,26,26,31,26,40,30,39,0,0,0,0,0,0,0,0,0,0,0,0,0,0,0,0,0,0,0,0,0,0,0,0,0,0,0]} 1. d4 {[%emt 0:00:00]} Nf6 {[%emt 0:00:00]} 2. Nf3 {[%emt 0:00:03]} d5 {[%emt 0:00:05]} 3. c4 {[%emt 0:00:03]} e6 {[%emt 0:00:02]} 4. g3 {[%emt 0:00:02]} Be7 {[%emt 0:00:32]} 5. Bg2 {[%emt 0:00:05]} O-O {[%emt 0:00:00]} 6. O-O {[%emt 0:00:27]} a5 {[%emt 0:00:07]} 7. Nc3 {[%emt 0:00:29] E06: Closed Catalan: Early deviations.} c6 {[%emt 0:00:19]} 8. Bf4 {[%emt 0:01:34]} Nbd7 {[%emt 0:00:37] [#]} 9. Rc1 $146 {[%emt 0:01:24] White has an edge.} ({Predecessor:} 9. Nd2 Nh5 10. Be3 b6 11. f4 Ba6 12. Kh1 Rc8 13. cxd5 exd5 14. g4 Nhf6 15. g5 {0-1 (35) Ahlander,B (2383)-Shankland,S (2720) Struga 2021}) 9... dxc4 {[%emt 0:01:27]} 10. e4 {[%emt 0:01:46] Against Nd5} b5 {[%emt 0:05:24]} 11. d5 $1 {[%emt 0:00:05] [#] And now d6 would win.} cxd5 {[%emt 0:00:33]} 12. exd5 {[%emt 0:00:00] Strongly threatening d6.} exd5 {[%emt 0:00:01]} 13. Nxd5 {[%emt 0:00:22] Black must now prevent Bc7.} Ra6 {[%emt 0:02:21]} 14. Nxe7+ {[%emt 0:05:43]} Qxe7 {[%emt 0:00:02]} 15. a4 {[%emt 0:00:00]} Qb4 {[%emt 0:00:23][%csl LRa4,LRb2]} 16. Bd2 {[%emt 0:01:40]} Qxa4 {[%emt 0:00:31]} 17. Qxa4 {[%emt 0:00:04]} bxa4 {[%emt 0:00:00]} 18. Rxc4 {[%emt 0:00:02]} Rb6 {[%emt 0:00:00]} 19. Rfc1 {[%emt 0:00:52]} Ba6 {[%emt 0:00:19]} 20. Rxa4 {[%emt 0:00:01]} Rxb2 {[%emt 0:00:03]} 21. Rxa5 {[%emt 0:00:02]} Bb7 {[%emt 0:00:07]} 22. Bc3 {[%emt 0:00:06]} Rb6 {[%emt 0:00:02]} 23. Bd4 {[%emt 0:00:13] This bishop pair is nice.} Rb4 {[%emt 0:00:20]} 24. Bxf6 {[%emt 0:00:35]} (24. Ba1 {looks sharper.} Be4 25. Nd4 Rb1 26. Rxb1 Bxb1 27. h3) 24... Nxf6 {[%emt 0:00:04] The position is equal.} 25. Ne5 {[%emt 0:00:02]} Bxg2 {[%emt 0:00:01]} 26. Kxg2 {[%emt 0:00:00]} Rb7 {[%emt 0:00:01]} 27. Rac5 {[%emt 0:00:10]} Nd7 {[%emt 0:00:07]} 28. Nxd7 {[%emt 0:00:03]} Rxd7 {[%emt 0:00:00]} 29. Rc7 {[%emt 0:00:02]} Rxc7 {[%emt 0:00:01]} 30. Rxc7 $11 {[%emt 0:00:01][%mdl 4096] Endgame KR-KR} g6 {[%emt 0:00:00]} 31. h4 {[%emt 0:00:01]} h5 {[%emt 0:00:03]} 32. Rc3 {[%emt 0:00:01]} Kg7 {[%emt 0:00:01]} 33. Rb3 {[%emt 0:00:03]} Kf6 {[%emt 0:00:01]} 34. Rf3+ {[%emt 0:00:02]} Kg7 {[%emt 0:00:00]} 35. Rb3 {[%emt 0:00:02]} Kf6 {[%emt 0:00:01]} 36. Rf3+ {[%emt 0:00:01]} Kg7 {[%emt 0:00:00]} 37. Rb3 {[%emt 0:00:01] Weighted Error Value: White=0.04 (flawless) /Black=0.03 (flawless)} 1/2-1/2

[Event "FTX Crypto Cup MCCT 2022"]
[Site "Miami"]
[Date "2022.08.11"]
[Round "4.2"]
[White "Niemann, Hans Moke"]
[Black "Giri, Anish"]
[Result "1/2-1/2"]
[ECO "A48"]
[WhiteElo "2688"]
[BlackElo "2760"]
[Annotator "TA"]
[PlyCount "94"]
[EventDate "2022.08.10"]
[EventType "tourn"]
[EventCountry "USA"]
[SourceTitle "playchess.com"]
[Source "ChessBase"]
[SourceQuality "1"]
[TimeControl "900+10"]

{[%evp 9,94,0,-6,-18,-36,-18,-27,-30,-16,-31,0,-12,11,0,0,2,3,0,0,0,39,-15,15,0,0,3,3,0,0,0,0,-24,-21,-23,0,0,0,0,0,0,0,-4,0,-7,0,-6,0,-2,-5,-7,0,0,0,0,0,0,0,0,0,0,0,-7,-7,-7,-7,-7,-8,-14,0,0,0,0,0,0,0,0,0,0,0,0,0,0,0,0,0,0,0]} 1. Nf3 {[%emt 0:00:00]} c5 {[%emt 0:00:00]} 2. e3 {[%emt 0:00:34]} Nf6 {[%emt 0:00:08]} 3. b3 {[%emt 0:00:16]} g6 {[%emt 0:00:13]} 4. Bb2 {[%emt 0:00:05]} Bg7 {[%emt 0:00:01]} 5. d4 {[%emt 0:00:30]} cxd4 {[%emt 0:00:28]} 6. Nxd4 {[%emt 0:00:02] A48: 1 d4 Nf6 2 Nf3 g6: Torre, London and Colle Systems.} ({But not} 6. Qxd4 $2 Nh5 7. Qxg7 (7. Ne5 $2 Nc6 $19) 7... Nxg7 $19) 6... O-O {[%emt 0:00:13]} 7. c4 {[%emt 0:00:10]} d5 {[%emt 0:00:24]} 8. Be2 {[%emt 0:00:10] Black has an edge.} dxc4 {[%emt 0:00:07]} 9. bxc4 {[%emt 0:00:31]} Nc6 {[%emt 0:02:31]} 10. O-O {[%emt 0:00:11]} Bd7 {[%emt 0:00:45] [#]} 11. Nd2 $146 {[%emt 0:00:03]} ({Predecessor:} 11. Nc3 Rc8 12. Ncb5 Nxd4 13. Nxd4 Ne4 14. Bf3 Nd6 15. c5 Rxc5 16. Ba3 Rc7 17. Rb1 {½-½ (78) Svoboda,P-Omelka,M (2115) Czech Republic 1998}) 11... Rc8 {[%emt 0:00:04]} 12. Qb3 {[%emt 0:00:11]} Qb6 {[%emt 0:00:28]} 13. Rfc1 {[%emt 0:00:38]} Rfe8 {[%emt 0:00:30]} 14. h3 {[%emt 0:01:00]} Qxb3 {[%emt 0:00:22]} 15. N2xb3 {[%emt 0:00:31]} (15. axb3 $14 a6 16. Bc3) 15... b6 {[%emt 0:00:37]} 16. c5 {[%emt 0:00:05]} Nxd4 {[%emt 0:00:14]} 17. Bxd4 {[%emt 0:00:05]} Nd5 {[%emt 0:01:27]} 18. Ba6 {[%emt 0:00:37]} Rc7 {[%emt 0:00:36]} 19. cxb6 {[%emt 0:00:23]} axb6 {[%emt 0:00:08]} 20. Bc4 {[%emt 0:00:32]} Bxd4 {[%emt 0:00:10]} 21. Bxd5 {[%emt 0:00:07]} Rxc1+ {[%emt 0:00:21]} 22. Rxc1 {[%emt 0:00:00] The position is equal.} Be5 {[%emt 0:00:03]} 23. Bc6 {[%emt 0:00:12]} Bxc6 {[%emt 0:00:21]} 24. Rxc6 $11 {[%emt 0:00:02][%mdl 4096] Endgame KRB-KRN} Ra8 {[%emt 0:00:10]} 25. Rc2 {[%emt 0:00:02]} h5 {[%emt 0:00:25]} 26. Kf1 {[%emt 0:00:06]} Kg7 {[%emt 0:01:27]} 27. Ke2 {[%emt 0:00:01]} g5 {[%emt 0:00:11]} 28. g3 {[%emt 0:00:05]} Ra4 {[%emt 0:00:48]} 29. Nd2 {[%emt 0:00:13]} g4 {[%emt 0:00:20]} 30. h4 {[%emt 0:00:27]} f5 {[%emt 0:00:13]} 31. Nc4 {[%emt 0:00:07]} Bc7 {[%emt 0:00:03]} 32. Kd3 {[%emt 0:00:03]} Kf6 {[%emt 0:00:12]} 33. Rb2 {[%emt 0:00:23]} b5 {[%emt 0:00:25]} 34. Rxb5 {[%emt 0:00:14] [#] Hoping for Rc5.} Rxa2 {[%emt 0:00:01]} 35. Rb2 {[%emt 0:00:02]} Rxb2 {[%emt 0:00:22]} 36. Nxb2 {[%emt 0:00:00] KB-KN} e5 {[%emt 0:00:27][%cal Be7e5,Be5e4][%mdl 32]} 37. Nc4 {[%emt 0:00:07]} Ke6 {[%emt 0:00:27]} 38. Nd2 {[%emt 0:01:03]} e4+ {[%emt 0:00:22]} 39. Ke2 {[%emt 0:00:06]} Kd5 {[%emt 0:00:05]} 40. Nb3 {[%emt 0:00:29]} Be5 {[%emt 0:00:14]} 41. Kd2 {[%emt 0:00:02]} Kc4 {[%emt 0:00:14]} 42. Nc1 {[%emt 0:00:28]} Bc3+ {[%emt 0:00:23]} 43. Kd1 {[%emt 0:00:02]} Be5 {[%emt 0:00:05]} 44. Ne2 {[%emt 0:00:05]} Kd3 {[%emt 0:00:12]} 45. Nc1+ {[%emt 0:00:01]} Kc4 {[%emt 0:00:01]} 46. Ne2 {[%emt 0:00:00]} Kd3 {[%emt 0:00:01]} 47. Nc1+ {[%emt 0:00:01]} Kc4 {[%emt 0:00:00] An interesting draw.  Weighted Error Value: White=0.04 (flawless) /Black=0.05 (flawless)} 1/2-1/2

[Event "FTX Crypto Cup MCCT 2022"]
[Site "Miami"]
[Date "2022.08.11"]
[Round "4.3"]
[White "Carlsen, Magnus"]
[Black "Le, Quang Liem"]
[Result "1-0"]
[ECO "A07"]
[WhiteElo "2864"]
[BlackElo "2722"]
[Annotator "TA"]
[PlyCount "67"]
[EventDate "2022.08.10"]
[EventType "tourn"]
[EventCountry "USA"]
[SourceTitle "playchess.com"]
[Source "ChessBase"]
[SourceQuality "1"]
[TimeControl "900+10"]

{[%evp 9,67,23,32,8,26,20,26,14,25,26,27,1,7,4,33,28,41,26,32,0,0,0,11,-16,-16,-14,138,137,125,131,114,50,56,24,76,62,108,0,0,0,0,0,47,34,55,45,56,41,39,43,55,46,56,25,25,0,25,31,29995,29996]} 1. Nf3 {[%emt 0:00:00]} Nf6 {[%emt 0:00:00]} 2. g3 {[%emt 0:00:04]} d5 {[%emt 0:00:05]} 3. Bg2 {[%emt 0:00:03]} c6 {[%emt 0:00:02]} 4. O-O {[%emt 0:00:10]} Bg4 {[%emt 0:00:20]} 5. h3 {[%emt 0:01:08]} Bh5 {[%emt 0:00:03]} 6. c4 {[%emt 0:00:30] A07: Réti Opening: New York and Capablanca Systems.} e6 {[%emt 0:00:04]} 7. d4 {[%emt 0:00:16]} Be7 {[%emt 0:00:52]} 8. Nc3 {[%emt 0:02:16] White has an edge.} O-O {[%emt 0:00:58]} 9. Ne5 {[%emt 0:01:06]} Nfd7 {[%emt 0:00:51]} 10. cxd5 {[%emt 0:00:13] Strongly threatening g4.} Nxe5 {[%emt 0:02:03]} 11. dxe5 {[%emt 0:00:02] aiming for d6.} exd5 {[%emt 0:02:18]} 12. g4 {[%emt 0:01:43]} Bg6 {[%emt 0:00:02]} 13. f4 $36 {[%emt 0:00:00][%mdl 2048] Black must now prevent f5. White has the initiative.} f5 {[%emt 0:01:42] [#]} 14. Be3 $146 {[%emt 0:00:29][%cal Rc3d5] Nxd5! is the strong threat.} ({Predecessor:} 14. exf6 Bxf6 15. e4 Qb6+ 16. Kh1 Bxc3 17. f5 Bf7 18. bxc3 dxe4 19. f6 Bc4 20. fxg7 Rxf1+ 21. Bxf1 Bxf1 22. Qxf1 {1-0 (38) Svane,R (2613)-Zhigalko,S (2572) Chess.com INT 2020}) 14... Na6 {[%emt 0:00:49]} 15. Rc1 {[%emt 0:03:37][%cal Rc3d5]} Kh8 {[%emt 0:00:04]} 16. Nxd5 {[%emt 0:00:53]} cxd5 {[%emt 0:00:21]} 17. Qxd5 {[%emt 0:00:00]} b6 {[%emt 0:02:59]} 18. Qxa8 $16 {[%emt 0:00:34] White is much more active.} Qxa8 {[%emt 0:00:00]} 19. Bxa8 {[%emt 0:00:01]} Rxa8 {[%emt 0:00:00]} 20. Rfd1 {[%emt 0:00:14]} (20. a3 $16) 20... Kg8 $1 $14 {[%emt 0:00:02]} 21. e6 {[%emt 0:03:11]} Bc5 {[%emt 0:03:07]} (21... Re8 $11 {keeps the balance.}) 22. Rc3 {[%emt 0:00:30]} Re8 {[%emt 0:00:10] [#]} (22... Be7 $14 {should be considered.}) 23. Rd5 {[%emt 0:01:01]} (23. a3 $1 $16) 23... Nb4 $11 {[%emt 0:01:19]} 24. Rcxc5 {[%emt 0:00:02]} bxc5 {[%emt 0:00:06]} 25. Rd6 {[%emt 0:00:01]} Rc8 {[%emt 0:00:29] [#]} (25... Nxa2 $11 26. Bxc5 a5) 26. Bxc5 $1 {[%emt 0:00:02]} a5 {[%emt 0:00:04]} (26... Nxa2 27. Kf2) 27. a3 {[%emt 0:00:07]} Nc6 {[%emt 0:00:07]} 28. b4 {[%emt 0:00:05]} axb4 {[%emt 0:00:00]} 29. axb4 {[%emt 0:00:00]} fxg4 {[%emt 0:00:13]} 30. hxg4 {[%emt 0:00:05]} Be8 $1 {[%emt 0:00:02][%cal Oc6a5]} 31. Kf2 {[%emt 0:00:07]} Rb8 {[%emt 0:00:03]} 32. f5 {[%emt 0:00:51]} Nxb4 {[%emt 0:00:17]} 33. g5 {[%emt 0:00:03]} Rb5 $2 {[%emt 0:00:32][%mdl 8192]} (33... Nc6 $14) 34. Rd8 {[%emt 0:00:03] Weighted Error Value: White=0.16 (very precise) /Black=0.37} 1-0

[Event "FTX Crypto Cup MCCT 2022"]
[Site "Miami"]
[Date "2022.08.11"]
[Round "4.3"]
[White "Firouzja, Alireza"]
[Black "Duda, Jan-Krzysztof"]
[Result "1-0"]
[ECO "E53"]
[WhiteElo "2793"]
[BlackElo "2750"]
[Annotator "TA"]
[PlyCount "115"]
[EventDate "2022.08.10"]
[EventType "tourn"]
[EventCountry "USA"]
[SourceTitle "playchess.com"]
[Source "ChessBase"]
[SourceQuality "1"]
[TimeControl "900+10"]

{[%evp 12,115,10,8,22,10,18,4,22,8,10,8,6,6,15,0,0,0,0,0,0,-2,-5,-12,0,-2,0,0,18,20,9,8,8,16,6,14,76,56,46,50,117,100,106,106,109,110,207,89,99,120,120,109,117,86,125,81,91,95,171,173,164,165,207,204,197,197,184,192,345,183,484,506,503,481,616,592,722,441,508,499,591,581,588,476,543,485,485,485,577,559,706,689,620,507,481,441,876,823,1077,1065,1020,1100,1516,1418,29973,6415]} 1. d4 {[%emt 0:00:00]} Nf6 {[%emt 0:00:00]} 2. c4 {[%emt 0:00:01]} e6 {[%emt 0:00:02]} 3. Nc3 {[%emt 0:00:02]} Bb4 {[%emt 0:00:02]} 4. e3 {[%emt 0:00:00]} c5 {[%emt 0:00:02]} 5. Bd3 {[%emt 0:00:46]} O-O {[%emt 0:00:13]} 6. Nf3 {[%emt 0:00:04]} d5 {[%emt 0:00:05]} 7. cxd5 {[%emt 0:00:05]} exd5 {[%emt 0:00:35] E53: Nimzo-Indian: Rubinstein: Main Line (4...0-0 5 Nf3 d5 6 Bd3 c5 7 0-0).} 8. dxc5 {[%emt 0:00:06]} Nbd7 {[%emt 0:00:33]} 9. Bd2 {[%emt 0:00:05]} ({Much worse is} 9. Qb3 Qa5 $15) 9... Nxc5 {[%emt 0:00:05] The position is equal.} 10. Be2 {[%emt 0:00:01]} Ne6 {[%emt 0:00:11]} 11. a3 {[%emt 0:01:12] 11.Qb3 is the modern continuation.} Be7 {[%emt 0:00:08]} 12. O-O {[%emt 0:00:23]} a6 {[%emt 0:00:05] [#]} 13. h3 $1 $146 {[%emt 0:01:51][%mdl 8] A top novelty.} ({Predecessor:} 13. Rc1 Re8 14. Re1 b5 15. Na2 Ne4 16. Bc3 Nxc3 17. Nxc3 Bb7 18. Qd2 Bf6 19. Nd4 Nxd4 20. exd4 {½-½ (42) Navara,D (2742)-Wojtaszek,R (2736) Baku 2016}) 13... b6 {[%emt 0:00:13]} 14. Bd3 {[%emt 0:00:22]} Bb7 {[%emt 0:00:28]} 15. Ne2 {[%emt 0:00:04]} Ne4 {[%emt 0:00:33]} 16. Nfd4 {[%emt 0:01:17]} N6c5 {[%emt 0:00:34]} 17. Bc2 {[%emt 0:00:07]} Bf6 {[%emt 0:00:25]} 18. Rc1 {[%emt 0:00:12][%cal Ba1c1,Bc1c6,Bc6d6][%mdl 32]} g6 {[%emt 0:00:43]} 19. Be1 {[%emt 0:00:26]} Re8 {[%emt 0:00:13]} 20. b4 {[%emt 0:00:38]} Nd7 {[%emt 0:00:15]} 21. Bxe4 {[%emt 0:02:26]} dxe4 {[%emt 0:00:00]} 22. Nc6 {[%emt 0:00:01]} Bxc6 {[%emt 0:00:10]} 23. Rxc6 {[%emt 0:00:00]} Ne5 {[%emt 0:01:44]} (23... Rc8 $11 {keeps the balance.} 24. Rd6 Re7) 24. Rd6 $16 {[%emt 0:00:37]} Qe7 {[%emt 0:00:01]} 25. Rxb6 {[%emt 0:00:10]} Nc4 {[%emt 0:01:58]} (25... Bg7 $1 $14) 26. Rc6 {[%emt 0:00:04]} Ne5 {[%emt 0:00:01]} 27. Rc2 {[%emt 0:02:32]} Rad8 {[%emt 0:00:15] [#]} 28. Qb1 {[%emt 0:00:17]} Nf3+ {[%emt 0:03:18]} 29. Kh1 {[%emt 0:00:24]} (29. gxf3 $18 exf3 30. Nf4) 29... Qd7 {[%emt 0:01:24]} 30. Bc3 {[%emt 0:01:01]} Bxc3 {[%emt 0:00:40]} 31. Nxc3 {[%emt 0:00:01]} ({Wrong is} 31. Rxc3 $2 Nd2 32. Qc1 Nxf1 $19) 31... Qf5 {[%emt 0:00:05]} 32. Rd1 {[%emt 0:00:32] Inhibits Nd2.} Ne5 {[%emt 0:01:10]} 33. Rcd2 {[%emt 0:00:25]} Rxd2 {[%emt 0:00:37]} 34. Rxd2 {[%emt 0:00:00][%cal Bd1d2,Bd2a2,Ba2c2,Bc2c6][%mdl 32]} Nc4 {[%emt 0:00:01] [#]} (34... Nd3 $16) 35. Ra2 $1 $18 {[%emt 0:01:21]} Qe6 {[%emt 0:01:13]} 36. Ne2 {[%emt 0:00:22]} Ne5 {[%emt 0:00:23]} 37. Nd4 {[%emt 0:00:02]} Qd5 {[%emt 0:00:06]} 38. Rc2 {[%emt 0:00:08]} Nd3 {[%emt 0:00:04]} 39. Kg1 {[%emt 0:00:07]} Re5 $2 {[%emt 0:00:42]} (39... Qb7 40. Rc6 Ra8) 40. Qb3 {[%emt 0:00:12]} (40. Rc8+ $142 Kg7 41. Qa1) 40... Qd6 $2 {[%emt 0:00:31]} (40... Qxb3 {is more resistant.} 41. Nxb3 Re6) 41. Rc6 {[%emt 0:00:11]} Qd8 {[%emt 0:00:28]} 42. Qc2 {[%emt 0:01:05] aiming for Rc8.} Qg5 {[%emt 0:00:16]} 43. Rxa6 {[%emt 0:00:33]} Kg7 {[%emt 0:00:08] Threatens to win with ...Ne1.} 44. Qe2 {[%emt 0:00:14] Prevents Ne1.} h5 {[%emt 0:00:09]} 45. Rc6 {[%emt 0:00:28]} Re7 {[%emt 0:00:01]} 46. b5 {[%emt 0:00:12][%cal Bb4b5,Bb5c6][%mdl 32]} Ra7 {[%emt 0:00:02]} 47. Rc3 {[%emt 0:00:03]} Qf6 {[%emt 0:00:08]} 48. f3 {[%emt 0:00:13]} Ne5 {[%emt 0:00:56]} 49. fxe4 {[%emt 0:00:01]} Qh4 {[%emt 0:00:03]} 50. Nc6 {[%emt 0:00:23]} Nxc6 {[%emt 0:00:20]} 51. bxc6 {[%emt 0:00:07][%mdl 4096] Endgame And now c7 would win. KQR-KQR} Rc7 {[%emt 0:00:03]} 52. Rc4 {[%emt 0:00:18]} Qf6 {[%emt 0:00:06]} 53. Qc2 {[%emt 0:00:04]} Kh7 {[%emt 0:00:11]} (53... Qa1+ $142 54. Kf2 Qxa3) 54. Qc3 {[%emt 0:00:05]} Qd6 {[%emt 0:00:04]} 55. e5 {[%emt 0:00:03]} Qd1+ {[%emt 0:00:02]} 56. Kh2 {[%emt 0:00:01] Rd4 is the strong threat.} Kh6 {[%emt 0:00:11]} 57. a4 {[%emt 0:00:05]} g5 {[%emt 0:00:05]} 58. Qd4 {[%emt 0:00:07] Weighted Error Value: White=0.21 (precise) /Black=0.35} (58. Qa3 $142 Kh7 59. Qd6 Qf1 60. Qxc7 Qxc4 61. Qd7 Kg6 62. c7 Qc3 63. c8=Q Qxe5+ 64. g3 Qb2+ 65. Kg1 Qa1+ 66. Kg2 Qa2+ 67. Kf3) 1-0

[Event "FTX Crypto Cup MCCT 2022"]
[Site "Miami"]
[Date "2022.08.11"]
[Round "4.3"]
[White "Giri, Anish"]
[Black "Niemann, Hans Moke"]
[Result "0-1"]
[ECO "E17"]
[WhiteElo "2760"]
[BlackElo "2688"]
[Annotator "TA"]
[PlyCount "122"]
[EventDate "2022.08.10"]
[EventType "tourn"]
[EventCountry "USA"]
[SourceTitle "playchess.com"]
[Source "ChessBase"]
[SourceQuality "1"]
[TimeControl "900+10"]

{[%evp 13,122,17,11,14,20,28,25,14,33,38,41,26,38,30,69,66,85,89,88,91,114,116,127,54,72,63,70,51,56,56,43,0,0,0,0,0,0,0,2,0,35,0,0,0,184,182,166,0,25,17,12,23,22,4,4,4,4,0,0,0,37,38,41,19,41,35,35,28,37,0,0,0,0,0,0,0,9,0,29,-9,-9,-9,-9,-9,-9,-18,-18,-18,-10,-148,-139,-299,-295,-298,-272,-520,-510,-539,-516,-515,-501,-629,-629,-654,-601,-766,-667,-822,-1267,-12845,-12846]} 1. d4 {[%emt 0:00:00]} Nf6 {[%emt 0:00:00]} 2. c4 {[%emt 0:00:02]} e6 {[%emt 0:00:01]} 3. Nf3 {[%emt 0:00:01]} b6 {[%emt 0:01:40]} 4. g3 {[%emt 0:00:04]} Bb7 {[%emt 0:00:03]} 5. Bg2 {[%emt 0:00:02]} Be7 {[%emt 0:00:01]} 6. O-O {[%emt 0:00:05]} O-O {[%emt 0:00:01]} 7. Re1 {[%emt 0:00:11]} Na6 {[%emt 0:00:04]} 8. a3 {[%emt 0:00:16] E17: Queen's Indian: 4 g3 Bb7 5 Bg2 Be7.} Qc8 $5 {[%emt 0:00:20][%mdl 4] A promising side line.} 9. Nc3 {[%emt 0:02:05]} Ne4 {[%emt 0:00:03]} 10. Bd2 {[%emt 0:02:02] White has an edge.} d6 {[%emt 0:00:43]} 11. Qc2 {[%emt 0:00:21]} f5 {[%emt 0:00:24]} 12. Rad1 {[%emt 0:00:34]} Bf6 {[%emt 0:00:13] [#]} 13. d5 $146 {[%emt 0:00:23]} ({Predecessor:} 13. b4 c5 14. dxc5 bxc5 15. b5 Nc7 16. a4 e5 17. a5 Nxc3 18. Bxc3 Be4 19. Qb3 {½-½ (42) Ferre Perez,A (2146)-Vera Ruiz,H (2195) ICCF email 2014}) 13... Nxd2 {[%emt 0:01:21]} 14. Nxd2 {[%emt 0:00:16]} e5 {[%emt 0:00:15]} 15. Bh3 {[%emt 0:00:29]} g6 {[%emt 0:00:04]} 16. e4 {[%emt 0:00:29]} Qd8 {[%emt 0:00:40]} 17. exf5 {[%emt 0:00:43]} Bc8 {[%emt 0:00:02]} 18. g4 {[%emt 0:01:32]} (18. b4 $16) 18... gxf5 $14 {[%emt 0:00:15]} 19. gxf5 {[%emt 0:00:03]} Kh8 {[%emt 0:00:26]} 20. Kh1 {[%emt 0:00:29]} Bg5 $1 {[%emt 0:00:02]} 21. Nf3 {[%emt 0:00:13]} Bh6 {[%emt 0:00:15]} 22. Ne2 {[%emt 0:04:17]} (22. Rg1 $5 {[%cal Rg1g2]}) 22... Qf6 {[%emt 0:00:40][%cal Rc8f5]} 23. Ng3 $36 {[%emt 0:00:02][%mdl 2048] White has good play.} Bf4 {[%emt 0:00:01]} 24. b4 {[%emt 0:00:04][%cal Bb2b4,Bb4b5][%mdl 32] Threatens to win with Nh5.} Qh6 {[%emt 0:00:09] Prevents Nh5.} 25. Ng1 {[%emt 0:00:27]} Bd7 {[%emt 0:00:14]} 26. Rd3 {[%emt 0:00:29][%cal Og1e2]} Rg8 {[%emt 0:00:14]} (26... Bxf5 $5 27. Bxf5 (27. Nxf5 Rxf5 28. Rf3 Rf6 $11) 27... Rxf5 $11) 27. Re4 {[%emt 0:00:06]} (27. Qc3 $5 {[%cal Rg1e2]}) 27... c5 {[%emt 0:00:17]} 28. Rf3 {[%emt 0:00:52][%cal Oe4f4] And now Rexf4! would win.} Bg5 {[%emt 0:00:27]} (28... Raf8 $11) 29. b5 $18 {[%emt 0:00:25]} Nc7 {[%emt 0:00:02] [#]} 30. Rg4 $2 {[%emt 0:00:10]} (30. f6 $1 $18 Bxh3 31. f7) 30... Ne8 {[%emt 0:00:21] aiming for ...Nf6.} 31. Ne4 {[%emt 0:00:03] Rfg3 is the strong threat.} Nf6 {[%emt 0:00:07]} 32. Nxf6 {[%emt 0:00:05]} Bxf6 {[%emt 0:00:27]} 33. Rxg8+ {[%emt 0:00:06]} Rxg8 {[%emt 0:00:04]} 34. Rg3 {[%emt 0:00:00]} Ra8 {[%emt 0:00:10]} 35. Bg2 {[%emt 0:00:35]} Bh4 {[%emt 0:00:47]} 36. Rg4 {[%emt 0:01:07]} Qh5 {[%emt 0:00:35]} 37. Qe2 {[%emt 0:00:05][%cal Og4g8] Hoping for Rg8+!} Qh6 {[%emt 0:00:14]} 38. Be4 {[%emt 0:00:05]} Bf6 {[%emt 0:00:33]} 39. Qf3 {[%emt 0:00:20]} Be8 {[%emt 0:00:11]} 40. Qg2 {[%emt 0:00:22][%csl Gg2][%cal Rg4g8]} Bf7 {[%emt 0:00:27] Inhibits Rg8+.} 41. Rg3 {[%emt 0:00:13]} Qc1 {[%emt 0:00:26]} 42. Bd3 {[%emt 0:00:29]} Qxa3 {[%emt 0:00:22]} 43. Qh3 {[%emt 0:00:00] White wants to mate with Qh6.} Qc1 {[%emt 0:00:07] Inhibits Qh6.} 44. Rg6 {[%emt 0:00:18]} Rg8 {[%emt 0:01:27]} 45. Rxg8+ {[%emt 0:00:10]} Kxg8 {[%emt 0:00:04]} 46. Qe3 {[%emt 0:00:10]} Qxe3 {[%emt 0:01:24]} 47. fxe3 $11 {[%emt 0:00:01][%mdl 4096] Endgame KBB-KBN} e4 {[%emt 0:00:00]} 48. Bxe4 {[%emt 0:00:07]} Bg5 {[%emt 0:00:01]} 49. Nf3 {[%emt 0:00:20]} Bxe3 {[%emt 0:00:02]} 50. Kg2 {[%emt 0:00:00]} h6 {[%emt 0:00:24]} 51. f6 {[%emt 0:00:30]} (51. Kg3 $11) 51... Bh5 $17 {[%emt 0:01:00]} 52. Nh4 $2 {[%emt 0:00:15] [#]} (52. Kg3 $17) 52... Be2 $1 $19 {[%emt 0:00:06]} 53. Nf5 {[%emt 0:01:08]} Bf4 {[%emt 0:00:02]} 54. Ne7+ $2 {[%emt 0:00:04]} (54. h4 {was necessary.}) 54... Kf7 {[%emt 0:00:04] Black is clearly winning.} 55. Nc8 {[%emt 0:00:02]} Kxf6 {[%emt 0:00:10]} 56. Nxa7 {[%emt 0:00:02]} Bxc4 {[%emt 0:00:02]} 57. Nc8 {[%emt 0:00:07]} Bxb5 {[%emt 0:00:08] A strong pair of Bishops.} 58. Nxb6 {[%emt 0:00:01]} c4 {[%emt 0:00:07]} 59. Nc8 {[%emt 0:00:09]} Ke5 {[%emt 0:00:14]} 60. Kf3 {[%emt 0:00:02]} Ba4 {[%emt 0:00:29] White must now prevent ...Bd1+.} 61. Nxd6 {[%emt 0:00:17]} Bd1+ {[%emt 0:00:02] Quite a comeback for Black.  Weighted Error Value: White=0.49/Black=0.14 (very precise)} ({Not} 61... Kxd6 62. Kxf4 Be8 63. Ke3 $11) 0-1